Cogmind - Beta 16 @@@ ROGUE MODE // 2025.12.22 @ 13:18:16 Player: JuustuToug Result: Destroyed by N0-9UZ(R) with Subdweller Laser Performance ------------- Evolutions (0) 0 Regions Visited (2) 400 Robots Destroyed (14) 70 Value Destroyed (355) 355 Prototype IDs (0) 0 Alien Tech Used (0) 0 Bonus (0) 0 TOTAL SCORE: 825 Bonus ------- None Cogmind --------- Core Integrity 0/250 Matter 300/300 Energy 250/250 System Corruption 1% Temperature Cool (6) Movement Treading (240) Ox1 Location -10/Subcaves Parts ------- > --- POWER (1) -------- Ion Engine > --- PROPULSION (2) --- Light Treads Light Treads > --- UTILITY (2) ------ High-capacity Storage Unit Sensor Array > --- WEAPON (2) ------- Hammer > --- INVENTORY (20) --- Light Ion Engine Aluminum Leg Aluminum Leg Aluminum Leg High-capacity Matter Pod (128) Subdweller Optics Transport Network Coupler Scrap Shield Medium Laser Small Laser Small Laser Light Assault Rifle Datajack Peak State ------------ > --- POWER ------------ Ion Engine > --- PROPULSION ------- Light Treads Light Treads > --- UTILITY ---------- High-capacity Storage Unit Sensor Array > --- WEAPON ----------- Medium Laser Light Assault Rifle > --- INVENTORY -------- Light Ion Engine Aluminum Leg Aluminum Leg Aluminum Leg High-capacity Matter Pod Transport Network Coupler Small Laser Small Laser Light Assault Rifle Datajack [Rating: 8] Favorites ----------- Power Ion Engine Engine Ion Engine Propulsion Light Treads Treads Light Treads Utility High-capacity Storage Unit Device Sensor Array Storage High-capacity Storage Unit Weapon Light Assault Rifle Energy Gun Medium Laser Ballistic Gun Light Assault Rifle Impact Weapon Hammer Special Melee Weapon Datajack Build | -11 -10 -10 ------- Run | Yrd Mat Sub Slots Evolved . | . . . Power . | . . . Propulsion . | . . . Utility . | . . . Weapon . | . . . Parts Attached 13 | 7 4 2 Power 2 | 1 1 . Engine 2 | 1 1 . Core . | . . . Reactor . | . . . Propulsion 3 | 2 1 . Treads 3 | 2 1 . Leg . | . . . Wheel . | . . . Hover . | . . . Flight . | . . . Utility 4 | 2 2 . Device 2 | 1 1 . Storage 2 | 1 1 . Processor . | . . . Hackware . | . . . Protection . | . . . Artifact . | . . . Weapon 4 | 2 . 2 Energy Gun 1 | 1 . . Energy Cannon . | . . . Ballistic Gun 1 | 1 . . Ballistic Cannon . | . . . Launcher . | . . . Special Weapon . | . . . Impact Weapon 1 | . . 1 Slashing Weapon . | . . . Piercing Weapon . | . . . Special Melee Weapon 1 | . . 1 Unidentified Prototypes . | . . . Parts Lost 3 | . 2 1 Power . | . . . Propulsion 1 | . 1 . Utility 1 | . 1 . Weapon 1 | . . 1 Highest Loss Streak 1 | . 1 1 To Critical Strikes . | . . . Average Backups 6 | . 5 12 Power . | . . 1 Propulsion 1 | . . 3 Utility 1 | . 1 3 Weapon 2 | . 1 4 Tool/Special . | . . . Unused Backups 11 | . . 11 Power 1 | . . 1 Propulsion 3 | . . 3 Utility 4 | . . 4 Weapon 3 | . . 3 Tool/Special . | . . . Average Slot Usage (%) 98 | . 98 100 Engine 14 | . 14 14 Treads 28 | . 28 28 Device 12 | . 12 14 Storage 13 | . 13 14 Energy Gun 11 | . 14 2 Ballistic Gun 14 | . 14 14 Impact Weapon 2 | . . 11 Peak Build Rating 8 | 7 8 8 Average Rating 7 | 4 7 7 On Entrance 5 | . 7 8 Avg Prop Armor Cover (%) . | . . . Naked Turns . | . . . Heaviest Build 49 | 14 49 49 Greatest Support 40 | 40 40 40 Greatest Overweight (x) 1 | . 1 1 Average Overweight (x) . | . . 1 Largest Inventory Capacity 20 | 8 20 20 Average Capacity 17 | 6 17 20 Most Carried 14 | 1 11 14 Average Carried 6 | . 5 12 Final Capacity 20 | 8 20 20 Final Carried 14 | 1 11 14 Class Distribution -------------------- 100% | Mutant Dominant Class ---------------- Mutant | -10/Materials Mutant | -10/Subcaves Resources | -11 -10 -10 ----------- Run | Yrd Mat Sub Matter Collected 525 | 152 325 48 Remotely . | . . . Salvage Created 517 | 18 425 74 Parts 30 | 5 23 2 Haulers Intercepted 1 | . 1 . Recyclers Shooed 1 | 1 . . Parts Field Recycled . | . . . Retrieved Matter . | . . . Parts Self-Destructed . | . . . Prevented . | . . . Parts Restored . | . . . Kills | -11 -10 -10 ------- Run | Yrd Mat Sub Combat Hostiles Destroyed 11 | . 9 2 Melee 2 | . . 2 Guns 9 | . 9 . Classes Destroyed 6 | 1 4 1 Tunneler 1 | 1 . . Hauler 1 | . 1 . Recycler 1 | . 1 . Swarmer 3 | . 3 . Grunt 6 | . 6 . Subdweller 2 | . . 2 Best Kill Streak 4 | 1 4 1 Combat Bots Only 4 | . 4 1 Max Kills in Single Turn 1 | 1 1 1 Gunslinging . | . . . Exploded . | . . . Melee 1 | . . 1 Uniques/NPCs Destroyed . | . . . Combat | -11 -10 -10 -------- Run | Yrd Mat Sub Hostile Shots Fired 67 | . 49 18 Missed 18 | . 15 3 Hits 49 | . 34 15 Projectile 49 | . 34 15 Critical Strikes 1 | . . 1 Damage Taken 820 | . 527 293 Core 264 | . 156 108 Absorbed by Shields . | . . . Regen/Repaired (Parts) 293 | . 293 . Core Remaining (%) 100 | 100 . . Volleys Fired 52 | 3 49 . Largest 2 | 2 2 . Hottest 70 | 70 70 . Shots Fired 104 | 6 98 . Gun 104 | 6 98 . Cannon . | . . . Launcher . | . . . Special . | . . . Kinetic 52 | 3 49 . Thermal 52 | 3 49 . Explosive . | . . . Electromagnetic . | . . . Robot Hit Streak 11 | 3 11 . Robot Miss Streak 5 | 1 5 . Penetration Max . | . . . Secondary Targets 1 | . 1 . Max Gunslinging Chain 1 | . 1 . Shots Hit Robots 73 | 3 61 9 Core Hits 27 | 2 23 2 Critical Kills . | . . . Critical Parts Destroyed 1 | . . 1 Critical Strikes 3 | . 2 1 Burn 2 | . 2 . Smash 1 | . . 1 Melee Attacks 26 | . . 26 Impact 25 | . . 25 Slashing . | . . . Piercing . | . . . Sneak Attacks . | . . . Combat Hostiles . | . . . Follow-up Attacks . | . . . Damage Inflicted 867 | 33 634 200 Guns 667 | 33 634 . Cannons . | . . . Explosions . | . . . Melee 200 | . . 200 Ramming . | . . . Kinetic 237 | 7 230 . Thermal 430 | 26 404 . Explosive . | . . . Electromagnetic . | . . . Impact 200 | . . 200 Slashing . | . . . Piercing . | . . . Highest Corruption 1 | . 1 1 Average Corruption 1 | . 1 1 Corruption Purged . | . . . Corruption Blocked . | . . . Effects 1 | . . 1 Data Loss (minor) 1 | . . 1 Overload Shots . | . . . Overflow Damage 28 | . . 28 Projectiles . | . . . Explosions . | . . . Melee 28 | . . 28 Knockbacks 1 | . . 1 Impact 1 | . . 1 Kinetic . | . . . Secondary . | . . . Self-Inflicted Damage . | . . . Shots . | . . . Rammed . | . . . Targets Rammed . | . . . Kicked . | . . . Crushed . | . . . Highest Temperature 176 | 50 176 . Average Temperature 52 | 26 53 . Received Heat Transfer 234 | . 162 72 Siege Activations . | . . . Martial Activations . | . . . Shielding Activations . | . . . Robots Disrupted . | . . . Combat Hostiles . | . . . Robots Corrupted . | . . . Combat Hostiles . | . . . Parts Fried 1 | . . 1 Impact Corruptions 1 | . . 1 Robots Melted . | . . . Combat Hostiles . | . . . Parts Melted 2 | . 2 . Heat Transferred 1406 | 74 1332 . Parts Sabotaged . | . . . Parts Stolen . | . . . Parts Stripped . | . . . Power Chain Reactions . | . . . Alert | -11 -10 -10 ------- Run | Yrd Mat Sub Maximum Alert Level . | . . . Low Security (%) 100 | 100 100 . Level 1 . | . . . Level 2 . | . . . Level 3 . | . . . Level 4 . | . . . Level 5 . | . . . High Security . | . . . Max Security . | . . . Peak Influence 72 | . 72 . Initial . | . . . Average 12 | . 13 . Influence Increases 268 | 5 263 . Destroy 0b10 Robot/C 180 | . 180 . Destroy 0b10 Robot/NC 15 | 5 10 . Destroy Leader 42 | . 42 . Successful Hack 16 | . 16 . Partial Spotted 15 | . 15 . Influence Decreases 268 | 5 263 . Time Decay 258 | 5 253 . Lost Part 10 | . 10 . Squads Dispatched 1 | . 1 . Investigation 1 | . 1 . Extermination . | . . . Reinforcement . | . . . Assault . | . . . Garrison . | . . . Intercept . | . . . Searches Triggered . | . . . Construction Impeded . | . . . Haulers Reinforced . | . . . Active Scanning Responses . | . . . Cargo Convoy Interrupts . | . . . Stealth | -11 -10 -10 --------- Run | Yrd Mat Sub Distress Signals 1 | . 1 . Communications Jammed . | . . . Distress Signals . | . . . Times Spotted 21 | . 18 3 Peak Tracking Total 3 | . 3 1 Tactical Retreats . | . . . Traps | -11 -10 -10 ------- Run | Yrd Mat Sub Traps Triggered 2 | . 2 . Indirectly . | . . . Trap Hack Attempts . | . . . Triggered . | . . . Disarmed . | . . . Reprogrammed . | . . . Reused . | . . . Traps Extracted . | . . . Installed . | . . . Triggered . | . . . Machines | -11 -10 -10 ---------- Run | Yrd Mat Sub Machines Disabled . | . . . Max in Single Turn . | . . . Machines Repaired . | . . . Machines Dismantled . | . . . Machines Sabotaged . | . . . Overloaded Fab Kills . | . . . Hacking | -11 -10 -10 --------- Run | Yrd Mat Sub Machines Accessed 7 | . 7 . Terminals 5 | . 5 . Fabricators . | . . . Repair Stations 1 | . 1 . Recycling Units 1 | . 1 . Scanalyzers . | . . . Garrison Access . | . . . Total Hacks 28 | . 28 . Successful 17 | . 17 . Failed 11 | . 11 . Catastrophic 1 | . 1 . Database Lockouts . | . . . Manual 18 | . 18 . Terminals 21 | . 21 . Fabricators . | . . . Repair Stations 6 | . 6 . Recycling Units 1 | . 1 . Scanalyzers . | . . . Garrison Access . | . . . Terminal Hacks 2 | . 2 . Part Schematic 1 | . 1 . Branch Access Points 1 | . 1 . Fabricator Hacks . | . . . Repair Station Hacks 4 | . 4 . Scan Component 2 | . 2 . Repair 2 | . 2 . Recycling Unit Hacks 1 | . 1 . Retrieve Components 1 | . 1 . Scanalyzer . | . . . Garrison Access Hacks . | . . . Unauthorized Hacks 10 | . 10 . Terminals 10 | . 10 . Assimilate 1 | . 1 . Botnet 3 | . 3 . Operators 1 | . 1 . Skim 5 | . 5 . Fabricators . | . . . Repair Stations . | . . . Recycling Units . | . . . Scanalyzers . | . . . Garrison Access . | . . . Data Cores Recovered . | . . . Used . | . . . Hacking Detections 6 | . 6 . Full Trace Events . | . . . Feedback Events . | . . . Feedback Blocked . | . . . Robot Schematics Acquired . | . . . Robots Built . | . . . Authchips . | . . . Time . | . . . Total Robot Build Rating . | . . . Part Schematics Acquired 1 | . 1 . Parts Built . | . . . Authchips . | . . . Time . | . . . Total Part Build Rating . | . . . Part Studies Acquired . | . . . Parts Repaired 2 | . 2 . Time 52 | . 52 . Parts Recycled . | . . . Recycled Matter . | . . . Retrieved Matter . | . . . Retrieved Components 9 | . 9 . Parts Scanalyzed . | . . . Part Schematics Acquired . | . . . Parts Damaged . | . . . Bothacking | -11 -10 -10 ------------ Run | Yrd Mat Sub Used RIF Installer . | . . . Robots Hacked 1 | . . 1 Non-combat . | . . . Combat 1 | . . 1 Robot Hacks Applied 1 | . . 1 parse_system 1 | . . 1 Relay Couplers Released . | . . . Fabnet Peak Effective % . | . . . Robots Rewired . | . . . Allies Hacked . | . . . Hacks Repelled . | . . . Allies | -11 -10 -10 -------- Run | Yrd Mat Sub Total Allies . | . . . Largest Group . | . . . Highest-Rated Group . | . . . Highest-Rated Ally . | . . . Total Orders . | . . . Ally Attacks . | . . . Total Damage . | . . . Kills . | . . . Allies Corrupted . | . . . Allies Melted . | . . . Intel | -11 -10 -10 ------- Run | Yrd Mat Sub Active Infowar (turns) 1345 | 19 1050 276 Sensors 724 | . 448 276 Seismic 621 | 19 602 . Robot Analysis Total . | . . . Derelict Logs Recovered . | . . . Drone Launches . | . . . Drone Recoveries . | . . . Exploration | -11 -10 -10 ------------- Run | Yrd Mat Sub Turns Passed 1536 | 85 1175 276 Spaces Moved 502 | 43 376 83 Core 3 | 3 . . Treads 499 | 40 376 83 Legs . | . . . Wheels . | . . . Hover . | . . . Flight . | . . . Fastest Speed 50 | 50 160 240 Average Speed 214 | 152 216 240 Slowest Speed 240 | 160 240 240 Overloaded Moves . | . . . Propulsion Burnouts . | . . . Robots Hopped . | . . . Potential Cave-ins . | . . . Cave-ins Triggered . | . . . Exploration Rate (%) 26 | 4 74 1 Regions Visited 2 Branch Regions 1 Pre-discovered Areas 2 | . 2 . Known Exits Taken . | . . . Unknown Exits Taken 2 | 1 1 . Scrap Searched . | . . . Spaces Dug 11 | . . 11 Terrain Destroyed 11 | . . 11 Melee 11 | . . 11 Projectile . | . . . AOE . | . . . Terrain Rammed . | . . . Walls Destroyed . | . . . Machines Disabled . | . . . Actions | -11 -10 -10 --------- Run | Yrd Mat Sub Total 817 | 54 649 114 Wait 203 | 1 202 . Move 500 | 42 375 83 Hop . | . . . Pick Up 18 | 1 15 2 Fast Attach 9 | 7 2 . Attach 2 | . 2 . Detach . | . . . Swap 5 | . 2 3 Drop 2 | . 2 . Fire 52 | 3 49 . Melee 26 | . . 26 Ram . | . . . Kick . | . . . Crush . | . . . Escape Stasis . | . . . Rewire . | . . . Trap . | . . . Miscellaneous . | . . . Route ------- -11/Scrapyard -10/Materials (discovered 5 exits: *Mat x3 / *Min / [*Sub]) -10/Subcaves History --------- Turn | Location | Event 21 | -11/Scrapyard | Discovered new exit (range 15) 86 | -11/Scrapyard | Entered Materials 250 | -10/Materials | Discovered new exit (range 14) 262 | -10/Materials | Identified exit to Mines 316 | -10/Materials | Build established: Mutant 519 | -10/Materials | Discovered new exit (range 4) 630 | -10/Materials | Repaired Hcp. Storage Unit 667 | -10/Materials | Repaired Seismic Detector 715 | -10/Materials | Core integrity fell below 50% 896 | -10/Materials | Discovered new exit (range 5) 958 | -10/Materials | Learned location of 1 exit from Recycling 1106 | -10/Materials | Learned Recycling recycling unit intel 1134 | -10/Materials | Identified exit to Materials 1162 | -10/Materials | Learned 4 Recycling zone layouts 1181 | -10/Materials | Learned 4 Recycling zone layouts 1244 | -10/Materials | Discovered new exit (range 8) 1261 | -10/Materials | Entered Subcaves 1326 | -10/Subcaves | Ambushed by Subdweller buried in earth 1340 | -10/Subcaves | Core integrity fell below 20% 1393 | -10/Subcaves | Ambushed by Subdweller buried in earth 1530 | -10/Subcaves | Ambushed by Subdweller buried in earth 1537 | -10/Subcaves | Destroyed by N0-9UZ(R) with Subdweller Laser Last Messages --------------- 01344_ SG-TH5(R) destroyed. 01349_ Acquired Scrap Shield. 01394_ HD-OIG(R): "ARGHSUB!" 01399_ HD-OIG(R) suffers critical hit (Smash). 01399_ Destroyed Sub. Power Source. 01399_ HD-OIG(R) system corrupted by crushing effect. 01399_ HD-OIG(R) misfires. 01404_ Disposable Heat Sink fried. 01404_ HD-OIG(R) destroyed. 01406_ Subatomizers dissect the Corrupted Sub. Optics. 01407_ System corrupted: Component data lost. 01409_ Acquired Corrupted Sub. Optics. 01458_ Acquired 34 matter. 01460_ Extracted 4 energy. 01525_ Acquired 14 matter. 01530_ N0-9UZ(R) comes tumbling out of the earth. 01535_ Lgt. Assault Rifle destroyed. Map ----- +----------------------------------------------------+ | ?????????????????????????????????????????????????? | | ?????????????????????????????????????????????????? | | ??????????????#####??????????????????????????????? | | ????##?###???## #??????????????????????????????? | | ????# ## #####%& #???????????????????????????????? | | ?????# !# ##& ##???????????????????????????????? | | ?????## #### ###????????????????????????????????? | | ?????##!##?### #?????????????????????????????????? | | ?????# # #???###?????????????????????????????????? | | ?????# ##???????????????????????????????????????? | | ?????# ##???????????????????????????????????????? | | ????## #???????????????????????????????????????? | | ????# ##???????????????????????????????????????? | | ???## #????????????????????????????????????????? | | ???# #????????????????????????????????????????? | | ???## ##???????????????????????????????????????? | | ????# #???????????????????????????????????????? | | ???## ##??????????????????????????????????????? | | ???# ##?????????????????????????????????????? | | ???### ######????????????????????????????????? | | ?????## #####????????????????????????????? | | ??????## ### ####?????????????????????????? | | ???????### # ##### ##????????????????????????? | | ?????????#######???# # ##???????????????????????? | | ???????????????????#### ##??????????????????????? | | ??????????????????????###@## #???????????????????? | | ????????????????????????##R #????????????????????? | | ????????????????????????# ###????????????????????? | | ????????????????????????##???????????????????????? | | ?????????????????????????????????????????????????? | | ?????????????????????????????????????????????????? | | ?????????????????????????????????????????????????? | | ?????????????????????????????????????????????????? | | ?????????????????????????????????????????????????? | | ?????????????????????????????????????????????????? | | ?????????????????????????????????????????????????? | | ?????????????????????????????????????????????????? | | ?????????????????????????????????????????????????? | | ?????????????????????????????????????????????????? | | ?????????????????????????????????????????????????? | | ?????????????????????????????????????????????????? | | ?????????????????????????????????????????????????? | | ?????????????????????????????????????????????????? | | ?????????????????????????????????????????????????? | | ?????????????????????????????????????????????????? | | ?????????????????????????????????????????????????? | | ?????????????????????????????????????????????????? | | | | | | | +----------------------------------------------------+ Best States ------------- Heat Dissipation 25 Energy Generation 10 Energy Capacity 250 Matter Stores 300 Matter Capacity 300 Sight Range 16 Robot Scan Range 14 Terrain Scan Density 10 Evasion (%) 40 Recoil Reduction 2 Item Schematics ----------------- Hcp. Storage Unit | -10/Materials | Hacked Robot Schematics ------------------ None Fabricated ------------ Nothing Repaired ---------- Hcp. Storage Unit | 44% | -10/Materials Seismic Detector | 30% | -10/Materials Studied --------- None Alien Tech Used ----------------- None Achievements -------------- None Challenges ------------ None Game ------ Seed ExplosiveLaserPlatform Manual? 0 Play Time 00:08:49 Cumulative 249.1 hours Start 2025.12.22 @ 13:08:13 End 2025.12.22 @ 13:18:16 Sessions 1 Manual Loads 0 Difficulty Rogue Special Mode None Game No. 167 Rogue 167 Adventurer 0 Explorer 0 Win Type - Total 8 Types 5/0/1/1/0/0/0/1/0/0 Lore% 87 Gallery% 78 Achievement% 62 Wizard Run 0 Options --------- Layout 1 ASCII 0 Keyboard 0 Movement Mouse Keybinds 0 Fullscreen 2 Font 24/Smallcaps Map View 50x35 Zoom Use 0% Tactical HUD 1 Map Filters NONE Filters NONE Steam 1 RUN: b7f112bf-742a-4d0d-8ebf-c883f31c4828